fUSD/lending_fUSD_20260227
["ID","MTS","AMOUNT","RATE_DAILY","PERIOD"]
[406825419,1772209853139,-201.93286099,0.00042731,2]
[406825420,1772209853149,-287.61899177,0.00042731,2]
[406825421,1772209853158,-844.0,0.0004274,120]
[406825422,1772209853169,-4000.0,0.0004274,14]
[406825423,1772209853178,-848.0,0.00042799,16]
[406825424,1772209853187,-32027.51783631,0.0004288,60]
[406825425,1772209853196,-168.0,0.00042973,2]
[406825426,1772209853205,-500.0,0.00043,120]
[406825427,1772209853214,-500.0,0.00043,120]
[406825428,1772209853223,-168.0,0.00043026,2]
[406825429,1772209853232,-213.66,0.00043068,120]
[406825430,1772209853241,-4023.11668491,0.000431,120]
[406825431,1772209853250,-2566.84,0.000431,14]
[406825432,1772209853260,-1575.8,0.000431,14]
[406825433,1772209853270,-168.0,0.00043231,2]
[406825434,1772209853279,-599.60298507,0.00043278,2]
[406825435,1772209853291,-209.40437684,0.00043279,2]
[406825436,1772209853300,-298.26089446,0.00043279,2]
[406825437,1772209853309,-5134.6406989,0.00043281,7]
[406825438,1772209853319,-2035.3881807,0.00043281,7]
[406825439,1772209853328,-844.0,0.00043288,120]
[406825440,1772209853337,-500.0,0.00043288,120]
[406825441,1772209853346,-500.0,0.00043343,120]
[406825442,1772209853356,-500.0,0.00043398,120]
[406825443,1772209853365,-500.0,0.00043452,120]
[406825444,1772209853375,-150.0,0.00043479,2]
[406825445,1772209853385,-168.0,0.00043501,2]
[406825446,1772209853501,-500.0,0.00043507,120]
[406825447,1772209853523,-168.0,0.0004355,2]
[406825448,1772209853534,-500.0,0.00043562,120]
[406825449,1772209853544,-500.0,0.00043617,120]
[406825450,1772209853553,-168.0,0.00043655,2]
[406825451,1772209853564,-500.0,0.00043672,120]
[406825452,1772209853573,-500.0,0.00043726,120]
[406825453,1772209853583,-500.0,0.00043781,120]
[406825454,1772209853592,-217.15233878,0.00043827,2]
[406825455,1772209853601,-309.29654756,0.00043827,2]
[406825456,1772209853610,-509.0,0.00043828,27]
[406825457,1772209853621,-255.57222519,0.00043833,120]
[406825458,1772209853630,-844.0,0.00043836,120]
[406825459,1772209853639,-444.831966,0.00043836,120]
[406825460,1772209853648,-444.831966,0.00043836,120]
[406825461,1772209853658,-444.831966,0.00043836,120]
[406825462,1772209853668,-444.831966,0.00043836,120]
[406825463,1772209853677,-444.831966,0.00043836,120]
[406825464,1772209853686,-444.831966,0.00043836,120]
[406825465,1772209853696,-444.831966,0.00043836,120]
[406825466,1772209853705,-444.831966,0.00043836,120]
[406825467,1772209853715,-444.831966,0.00043836,120]
[406825468,1772209853725,-444.831966,0.00043836,120]
[406825469,1772209853734,-444.831966,0.00043836,120]
[406825470,1772209853744,-444.831966,0.00043836,120]
[406825471,1772209853754,-500.0,0.00043836,120]
[406825472,1772209853765,-20000.0,0.00043836,120]
[406825473,1772209853776,-196.82672014,0.0004384,120]
[406825474,1772209853786,-196.82672014,0.0004384,120]
[406825475,1772209853797,-196.82,0.0004384,120]
[406825476,1772209853806,-153.087449,0.0004384,120]
[406825477,1772209853815,-153.087449,0.0004384,120]
[406825478,1772209853824,-500.0,0.00043891,120]
[406825479,1772209853834,-500.0,0.00043946,120]
[406825480,1772209853843,-150.0,0.00044,57]
[406825481,1772209853854,-10268.90836991,0.00044,120]
[406825482,1772209853866,-500.0,0.00044,120]
[406825483,1772209853875,-168.0,0.00044025,2]
[406825484,1772209853884,-245.0,0.00044055,120]
[406825485,1772209853894,-156.0,0.000441,120]
[406825486,1772209853903,-904.95,0.000441,14]
[406825487,1772209853913,-500.0,0.00044109,120]
[406825488,1772209853922,-500.0,0.00044109,120]
[406825489,1772209853931,-500.0,0.00044109,120]
[406825490,1772209853940,-500.0,0.00044109,120]
[406825491,1772209853949,-500.0,0.00044109,120]
[406825492,1772209853959,-500.0,0.00044109,120]
[406825493,1772209853968,-500.0,0.00044109,120]
[406825494,1772209853977,-500.0,0.00044109,120]
[406825495,1772209853986,-296.88472817,0.00044109,120]
[406825496,1772209853995,-150.0,0.00044281,120]
[406825497,1772209854005,-2566.84,0.000443,14]
[406825498,1772209854015,-1575.8,0.000443,14]
[406825499,1772209854025,-225.18697532,0.00044375,2]
[406825500,1772209854034,-320.74051982,0.00044375,2]
[406825501,1772209854043,-844.0,0.00044384,120]
[406825502,1772209854053,-153.087449,0.00044547,120]
[406825503,1772209854062,-967.46295734,0.00044567,16]
[406825504,1772209854071,-2195.67203992,0.000449,28]
[406825505,1772209854080,-233.51889341,0.00044923,2]
[406825506,1772209854093,-332.60791905,0.00044923,2]
[406825507,1772209854103,-844.0,0.00044932,120]
[406825508,1772209854113,-3500.0,0.00045,120]
[406825509,1772209854124,-3045.3724374,0.00045,120]
[406825510,1772209854134,-221787.3890729,0.00045,120]
[406825511,1772209854143,-163.00592101,0.00045,10]
[406825512,1772209854154,-1000.0,0.00045,120]
[406825513,1772209854164,-900.0,0.00045,120]
[406825514,1772209854173,-25000.0,0.00045014,15]
[406825515,1772209854185,-25000.0,0.00045052,15]
[406825516,1772209854195,-25000.0,0.00045061,15]
[406825517,1772209854204,-19420.49031765,0.0004507,15]
[406825518,1772209854214,-1208.0,0.00045091,2]
[406825519,1772209854224,-1572.46566508,0.0004517,17]
[406825520,1772209854233,-1565.09,0.000452,30]
[406825521,1772209854243,-2778.74,0.00045205,120]
[406825522,1772209854253,-168.0,0.00045234,7]
[406825523,1772209854262,-2622.62485657,0.00045342,120]
[406825524,1772209854272,-2834.0,0.00045383,16]
[406825525,1772209854283,-904.95,0.000454,14]
[406825526,1772209854292,-168.0,0.00045426,7]
[406825527,1772209854303,-242.15909246,0.00045471,2]
[406825528,1772209854314,-344.91441206,0.00045471,2]
[406825529,1772209854324,-844.0,0.00045479,120]
[406825530,1772209854334,-153.087449,0.00045689,120]
[406825531,1772209854343,-168.0,0.00045741,2]
[406825532,1772209854353,-151.0,0.00045753,90]
[406825533,1772209854362,-274.05553643,0.000458,120]
[406825534,1772209854371,-150.0,0.000458,120]
[406825535,1772209854380,-157.38529778,0.000458,120]
[406825536,1772209854390,-285.18083939,0.00045913,3]
[406825537,1772209854401,-1917.92108292,0.00045997,120]
[406825538,1772209854410,-800.0,0.00045997,17]
[406825539,1772209854420,-800.0,0.00045997,17]
[406825540,1772209854430,-800.0,0.00045997,17]
[406825541,1772209854439,-800.0,0.00045997,17]
[406825542,1772209854448,-800.0,0.00045997,17]
[406825543,1772209854457,-800.0,0.00045997,17]
[406825544,1772209854466,-800.0,0.00045997,17]
[406825545,1772209854476,-800.0,0.00045997,17]
[406825546,1772209854485,-800.0,0.00045997,33]
[406825547,1772209854494,-35900.0,0.00046,120]
[406825548,1772209854504,-53723.696792,0.00046,30]
[406825549,1772209854513,-363.56845721,0.00046,120]
[406825550,1772209854522,-620.75186631,0.00046,120]
[406825551,1772209854532,-180.0,0.00046,120]
[406825552,1772209854542,-600.0,0.00046,120]
[406825553,1772209854551,-300.0,0.00046,120]
[406825554,1772209854560,-621.78829552,0.00046017,2]
[406825555,1772209854569,-251.11897888,0.00046019,2]
[406825556,1772209854578,-357.6762453,0.00046019,2]
[406825557,1772209854587,-921.67,0.00046027,120]
[406825558,1772209854596,-187.2857674,0.00046038,30]
[406825559,1772209854606,-1000.0,0.00046088,120]
[406825560,1772209854615,-1000.0,0.00046088,120]
[406825561,1772209854626,-1000.0,0.00046088,120]
[406825562,1772209854636,-1000.0,0.00046088,120]
[406825563,1772209854645,-1000.0,0.00046088,120]
[406825564,1772209854654,-1000.0,0.00046088,120]
[406825565,1772209854664,-1000.0,0.00046088,120]
[406825566,1772209854673,-1000.0,0.00046088,120]
[406825567,1772209854682,-1000.0,0.00046088,120]
[406825568,1772209854692,-1000.0,0.00046088,120]
[406825569,1772209854702,-1000.0,0.00046088,120]
[406825570,1772209854711,-1000.0,0.00046088,120]
[406825571,1772209854720,-1000.0,0.00046088,120]
[406825572,1772209854728,-1845.61634435,0.00046088,120]
[406825573,1772209854737,-1000.0,0.000461,120]
[406825574,1772209854746,-1000.0,0.000461,120]
[406825575,1772209854755,-1000.0,0.000461,120]
[406825576,1772209854764,-1000.0,0.000461,120]
[406825577,1772209854773,-1000.0,0.000461,120]
[406825578,1772209854782,-1000.0,0.000461,120]
[406825579,1772209854792,-1000.0,0.000461,120]
[406825580,1772209854802,-1000.0,0.000461,120]
[406825581,1772209854811,-1000.0,0.000461,120]
[406825582,1772209854820,-1000.0,0.000461,120]
[406825583,1772209854829,-1000.0,0.000461,120]
[406825584,1772209854838,-1000.0,0.000461,120]
[406825585,1772209854847,-1000.0,0.000461,120]
[406825586,1772209854856,-1845.61634435,0.000461,120]
[406825587,1772209854865,-151.0,0.00046128,14]
[406825588,1772209854874,-151.0,0.00046128,14]
[406825589,1772209854884,-151.0,0.00046128,120]
[406825590,1772209854894,-151.0,0.00046128,120]
[406825591,1772209854903,-151.0,0.00046128,120]
[406825592,1772209854912,-151.0,0.00046128,120]
[406825593,1772209854922,-151.0,0.00046128,120]
[406825594,1772209854932,-151.0,0.00046128,120]
[406825595,1772209854941,-151.0,0.00046128,120]
[406825596,1772209854950,-151.0,0.00046128,120]
[406825597,1772209854960,-241.690838,0.00046128,120]
[406825598,1772209854969,-151.0,0.00046128,120]
[406825599,1772209854978,-187.009171,0.00046128,120]
[406825600,1772209854988,-187.009171,0.00046128,120]
[406825601,1772209854997,-187.009171,0.00046128,120]
[406825602,1772209855009,-187.009171,0.00046128,120]
[406825603,1772209855019,-187.009171,0.00046128,120]
[406825604,1772209855028,-187.009171,0.00046128,120]
[406825605,1772209855037,-187.009171,0.00046128,120]
[406825606,1772209855047,-187.009171,0.00046128,120]
[406825607,1772209855056,-151.0,0.00046128,120]
[406825608,1772209855065,-151.0,0.00046128,120]
[406825609,1772209855074,-151.0,0.00046128,120]
[406825610,1772209855084,-151.0,0.00046128,120]
[406825611,1772209855097,-151.0,0.00046128,120]
[406825612,1772209855107,-152.311642,0.00046128,120]
[406825613,1772209855116,-151.0,0.00046128,120]
[406825614,1772209855126,-151.0,0.00046128,120]
[406825615,1772209855135,-151.0,0.00046128,120]
[406825616,1772209855144,-151.0,0.00046128,120]
[406825617,1772209855154,-265.820852,0.00046128,120]
[406825618,1772209855164,-151.0,0.00046128,120]
[406825619,1772209855173,-151.0,0.00046128,120]
[406825620,1772209855182,-151.0,0.00046128,120]
[406825621,1772209855192,-151.0,0.00046128,120]
[406825622,1772209855201,-183.312426,0.00046128,120]
[406825623,1772209855212,-151.0,0.00046128,120]
[406825624,1772209855221,-151.0,0.00046128,120]
[406825625,1772209855231,-500.0,0.00046138,120]
[406825626,1772209855240,-500.0,0.00046138,120]
[406825627,1772209855249,-500.0,0.00046138,120]
[406825628,1772209855259,-500.0,0.00046138,120]
[406825629,1772209855268,-500.0,0.00046138,120]
[406825630,1772209855278,-500.0,0.00046138,120]
[406825631,1772209855288,-500.0,0.00046138,120]
[406825632,1772209855297,-500.0,0.00046138,120]
[406825633,1772209855306,-500.0,0.00046138,120]
[406825634,1772209855315,-500.0,0.00046138,120]
[406825635,1772209855324,-500.0,0.00046138,120]
[406825636,1772209855333,-500.0,0.00046138,120]
[406825637,1772209855343,-500.0,0.00046138,120]
[406825638,1772209855352,-500.0,0.00046138,120]
[406825639,1772209855361,-500.0,0.00046138,120]
[406825640,1772209855371,-500.0,0.00046138,120]
[406825641,1772209855380,-500.0,0.00046138,120]
[406825642,1772209855390,-500.0,0.00046138,120]
[406825643,1772209855399,-500.0,0.00046138,120]
[406825644,1772209855408,-500.0,0.00046138,120]
[406825645,1772209855418,-500.0,0.00046138,120]
[406825646,1772209855427,-500.0,0.00046138,120]
[406825647,1772209855436,-500.0,0.00046138,120]
[406825648,1772209855446,-224.36,0.00046138,120]
[406825649,1772209855457,-500.0,0.00046138,120]
[406825650,1772209855467,-500.0,0.00046138,120]
[406825651,1772209855477,-500.0,0.00046138,120]
[406825652,1772209855486,-500.0,0.00046138,120]
[406825653,1772209855495,-608.93742676,0.00046138,120]
[406825654,1772209855504,-500.0,0.00046138,120]
[406825655,1772209855515,-500.0,0.00046138,120]
[406825656,1772209855524,-500.0,0.00046138,120]
[406825657,1772209855534,-500.0,0.00046138,120]
[406825658,1772209855543,-500.0,0.00046138,120]
[406825659,1772209855552,-500.0,0.00046138,120]
[406825660,1772209855561,-500.0,0.00046138,120]
[406825661,1772209855570,-500.0,0.00046138,120]
[406825662,1772209855579,-500.0,0.00046138,120]
[406825663,1772209855588,-500.0,0.00046138,120]
[406825664,1772209855597,-315.56,0.00046138,120]
[406825665,1772209855607,-500.0,0.00046138,120]
[406825666,1772209855616,-500.0,0.00046138,120]
[406825667,1772209855625,-500.0,0.00046138,120]
[406825668,1772209855634,-500.0,0.00046138,120]
[406825669,1772209855643,-500.0,0.00046138,120]
[406825670,1772209855653,-500.0,0.00046138,120]
[406825671,1772209855663,-500.0,0.00046138,120]
[406825672,1772209855672,-614.0,0.00046138,120]
[406825673,1772209855681,-500.0,0.00046138,120]
[406825674,1772209855691,-500.0,0.00046138,120]
[406825675,1772209855700,-500.0,0.00046138,120]
[406825676,1772209855709,-500.0,0.00046138,120]
[406825677,1772209855719,-500.0,0.00046138,120]
[406825678,1772209855729,-500.0,0.00046138,120]
[406825679,1772209855739,-500.0,0.00046138,120]
[406825680,1772209855750,-500.0,0.00046138,120]
[406825681,1772209855759,-502.29999993,0.00046138,120]
[406825682,1772209855769,-500.0,0.00046138,120]
[406825683,1772209855779,-500.0,0.00046138,120]
[406825684,1772209855789,-1244.23945735,0.00046138,60]
[406825685,1772209855799,-500.0,0.00046138,120]
[406825686,1772209855809,-500.0,0.00046138,120]
[406825687,1772209855819,-1244.23945735,0.00046138,60]
[406825688,1772209855828,-500.0,0.00046138,120]
[406825689,1772209855838,-500.0,0.00046138,120]
[406825690,1772209855847,-500.0,0.00046138,120]
[406825691,1772209855856,-197.62515024,0.00046138,120]
[406825692,1772209855866,-500.0,0.00046138,120]
[406825693,1772209855875,-501.25800766,0.00046138,120]
[406825694,1772209855885,-500.0,0.00046138,120]
[406825695,1772209855894,-500.0,0.00046138,120]
[406825696,1772209855903,-500.0,0.00046138,120]
[406825697,1772209855912,-295.8,0.00046138,120]
[406825698,1772209855921,-500.0,0.00046138,120]
[406825699,1772209855931,-500.0,0.00046138,120]
[406825700,1772209855940,-500.0,0.00046138,120]
[406825701,1772209855950,-500.0,0.00046138,120]
[406825702,1772209855960,-500.0,0.00046138,120]
[406825703,1772209855969,-500.0,0.00046138,120]
[406825704,1772209855979,-500.0,0.00046138,120]
[406825705,1772209855988,-500.0,0.00046138,120]
[406825706,1772209855997,-500.0,0.00046138,120]
[406825707,1772209856007,-500.0,0.00046138,120]
[406825708,1772209856016,-648.87145465,0.00046138,120]
[406825709,1772209856026,-500.0,0.00046138,120]
[406825710,1772209856036,-500.0,0.00046138,120]
[406825711,1772209856045,-500.0,0.00046138,120]
[406825712,1772209856055,-333.80595926,0.00046138,120]
[406825713,1772209856064,-500.0,0.00046138,120]
[406825714,1772209856073,-500.0,0.00046138,120]
[406825715,1772209856085,-500.0,0.00046138,120]
[406825716,1772209856094,-500.0,0.00046138,120]
[406825717,1772209856103,-500.0,0.00046138,120]
[406825718,1772209856112,-500.0,0.00046138,120]
[406825719,1772209856123,-500.0,0.00046138,120]
[406825720,1772209856132,-500.0,0.00046138,120]
[406825721,1772209856143,-500.0,0.00046138,120]
[406825722,1772209856153,-500.0,0.00046138,120]
[406825723,1772209856166,-500.0,0.00046138,120]
[406825724,1772209856175,-500.0,0.00046138,120]
[406825725,1772209856185,-500.0,0.00046138,120]
[406825726,1772209856194,-500.0,0.00046138,120]
[406825727,1772209856203,-500.0,0.00046138,120]
[406825728,1772209856212,-500.0,0.00046138,120]
[406825729,1772209856222,-500.0,0.00046138,120]
[406825730,1772209856231,-500.0,0.00046138,120]
[406825731,1772209856361,-500.0,0.00046138,120]
[406825732,1772209856371,-510.4232285,0.00046138,120]
[406825733,1772209856381,-500.0,0.00046138,120]
[406825734,1772209856390,-500.0,0.00046138,120]
[406825735,1772209856400,-500.0,0.00046138,120]
[406825736,1772209856410,-500.0,0.00046138,120]
[406825737,1772209856419,-500.0,0.00046138,120]
[406825738,1772209856432,-500.0,0.00046138,120]
[406825739,1772209856442,-500.0,0.00046138,120]
[406825740,1772209856452,-500.0,0.00046138,120]
[406825741,1772209856461,-500.0,0.00046138,120]
[406825742,1772209856470,-500.0,0.00046138,120]
[406825743,1772209856480,-500.0,0.00046138,120]
[406825744,1772209856489,-338.76,0.00046138,120]
[406825745,1772209856499,-500.0,0.00046138,120]
[406825746,1772209856508,-500.0,0.00046138,120]
[406825747,1772209856517,-500.0,0.00046138,60]
[406825748,1772209856527,-500.0,0.00046138,60]
[406825749,1772209856538,-500.0,0.00046138,60]
[406825750,1772209856547,-500.0,0.00046138,60]
[406825751,1772209856556,-500.0,0.00046138,60]
[406825752,1772209856566,-232.84016823,0.00046138,60]
[406825753,1772209856576,-500.0,0.00046138,120]
[406825754,1772209856585,-500.0,0.00046138,120]
[406825755,1772209856596,-555.73127071,0.00046138,120]
[406825756,1772209856605,-500.0,0.00046138,120]
[406825757,1772209856616,-513.97,0.00046138,120]
[406825758,1772209856625,-500.0,0.00046138,120]
[406825759,1772209856635,-500.0,0.00046138,120]
[406825760,1772209856645,-647.01,0.00046138,120]
[406825761,1772209856654,-500.0,0.00046138,120]
[406825762,1772209856664,-500.0,0.00046138,120]
[406825763,1772209856673,-500.0,0.00046138,120]
[406825764,1772209856683,-500.0,0.00046138,120]
[406825765,1772209856693,-500.0,0.00046138,120]
[406825766,1772209856703,-500.0,0.00046138,120]
[406825767,1772209856712,-500.0,0.00046138,120]
[406825768,1772209856722,-500.0,0.00046138,120]
[406825769,1772209856732,-214.51,0.00046138,120]
[406825770,1772209856741,-500.0,0.00046138,120]
[406825771,1772209856751,-500.0,0.00046138,120]
[406825772,1772209856761,-500.0,0.00046138,120]
[406825773,1772209856770,-500.0,0.00046138,120]
[406825774,1772209856780,-500.0,0.00046138,120]
[406825775,1772209856791,-548.79770432,0.00046138,120]
[406825776,1772209856801,-500.0,0.00046138,120]
[406825777,1772209856810,-500.0,0.00046138,120]
[406825778,1772209856832,-500.0,0.00046138,120]
[406825779,1772209856842,-500.0,0.00046138,120]
[406825780,1772209856853,-500.0,0.00046138,120]
[406825781,1772209856862,-500.0,0.00046138,120]
[406825782,1772209856872,-500.0,0.00046138,120]
[406825783,1772209856882,-500.0,0.00046138,120]
[406825784,1772209856891,-500.0,0.00046138,120]
[406825785,1772209856901,-500.0,0.00046138,120]
[406825786,1772209856910,-500.0,0.00046138,120]
[406825787,1772209856920,-500.0,0.00046138,120]
[406825788,1772209856930,-500.0,0.00046138,120]
[406825789,1772209856939,-500.0,0.00046138,120]
[406825790,1772209856948,-500.0,0.00046138,120]
[406825791,1772209856958,-500.0,0.00046138,120]
[406825792,1772209856968,-500.0,0.00046138,120]
[406825793,1772209856977,-500.0,0.00046138,120]
[406825794,1772209856987,-500.0,0.00046138,120]
[406825795,1772209856996,-500.0,0.00046138,120]
[406825796,1772209857006,-500.0,0.00046138,120]
[406825797,1772209857015,-500.0,0.00046138,120]
[406825798,1772209857024,-178.87,0.00046138,120]
[406825799,1772209857034,-500.0,0.00046138,120]
[406825800,1772209857043,-500.0,0.00046138,120]
[406825801,1772209857052,-500.0,0.00046138,120]
[406825802,1772209857062,-500.0,0.00046138,120]
[406825803,1772209857072,-500.0,0.00046138,120]
[406825804,1772209857081,-500.0,0.00046138,120]
[406825805,1772209857091,-500.0,0.00046138,120]
[406825806,1772209857102,-500.0,0.00046138,120]
[406825807,1772209857112,-500.0,0.00046138,120]
[406825808,1772209857121,-500.0,0.00046138,120]
[406825809,1772209857131,-500.0,0.00046138,120]
[406825810,1772209857142,-500.0,0.00046138,120]
[406825811,1772209857151,-500.0,0.00046138,120]
[406825812,1772209857161,-322.44196791,0.00046138,120]
[406825813,1772209857171,-500.0,0.00046138,120]
[406825814,1772209857180,-500.0,0.00046138,120]
[406825815,1772209857189,-500.0,0.00046138,120]
[406825816,1772209857199,-530.72168873,0.00046138,120]
[406825817,1772209857209,-500.0,0.00046138,120]
[406825818,1772209857218,-500.0,0.00046138,120]
[406825819,1772209857228,-390.80366048,0.00046138,120]
[406825820,1772209857238,-500.0,0.00046138,120]
[406825821,1772209857247,-500.0,0.00046138,120]
[406825822,1772209857256,-500.0,0.00046138,120]
[406825823,1772209857266,-500.0,0.00046138,120]
[406825824,1772209857275,-500.0,0.00046138,120]
[406825825,1772209857285,-542.81857484,0.00046138,120]
[406825826,1772209857295,-500.0,0.00046138,120]
[406825827,1772209857304,-500.0,0.00046138,120]
[406825828,1772209857314,-500.0,0.00046138,120]
[406825829,1772209857324,-185.2188735,0.00046138,120]
[406825830,1772209857333,-500.0,0.00046138,120]
[406825831,1772209857342,-500.0,0.00046138,120]
[406825832,1772209857352,-500.0,0.00046138,120]
[406825833,1772209857361,-500.0,0.00046138,120]
[406825834,1772209857371,-558.20846687,0.00046138,120]
[406825835,1772209857383,-500.0,0.00046138,120]
[406825836,1772209857392,-500.0,0.00046138,120]
[406825837,1772209857402,-500.0,0.00046138,120]
[406825838,1772209857412,-500.0,0.00046138,120]
[406825839,1772209857422,-500.0,0.00046138,120]
[406825840,1772209857431,-500.0,0.00046138,120]
[406825841,1772209857441,-500.0,0.00046138,120]
[406825842,1772209857451,-500.0,0.00046138,120]
[406825843,1772209857460,-500.0,0.00046138,120]
[406825844,1772209857470,-500.0,0.00046138,120]
[406825845,1772209857480,-500.0,0.00046138,120]
[406825846,1772209857491,-500.0,0.00046138,120]
[406825847,1772209857500,-500.0,0.00046138,120]
[406825848,1772209857510,-500.0,0.00046138,120]
[406825849,1772209857519,-500.0,0.00046138,120]
[406825850,1772209857528,-500.0,0.00046138,120]
[406825851,1772209857538,-500.0,0.00046138,120]
[406825852,1772209857548,-500.0,0.00046138,120]
[406825853,1772209857557,-500.0,0.00046138,120]
[406825854,1772209857566,-500.0,0.00046138,120]
[406825855,1772209857577,-500.0,0.00046138,120]
[406825856,1772209857586,-500.0,0.00046138,120]
[406825857,1772209857596,-500.0,0.00046138,120]
[406825858,1772209857606,-500.0,0.00046138,120]
[406825859,1772209857615,-500.0,0.00046138,120]
[406825860,1772209857624,-500.0,0.00046138,120]
[406825861,1772209857634,-500.0,0.00046138,120]
[406825862,1772209857643,-500.0,0.00046138,120]
[406825863,1772209857653,-500.0,0.00046138,120]
[406825864,1772209857662,-258.6109937,0.00046138,120]
[406825865,1772209857672,-500.0,0.00046138,120]
[406825866,1772209857681,-426.40211751,0.00046138,120]
[406825867,1772209857691,-500.0,0.00046138,120]
[406825868,1772209857700,-534.96350739,0.00046138,120]
[406825869,1772209857710,-500.0,0.00046138,120]
[406825870,1772209857719,-500.0,0.00046138,120]
[406825871,1772209857728,-500.0,0.00046138,120]
[406825872,1772209857737,-500.0,0.00046138,120]
[406825873,1772209857746,-500.0,0.00046138,120]
[406825874,1772209857755,-500.0,0.00046138,120]
[406825875,1772209857764,-500.0,0.00046138,120]
[406825876,1772209857773,-500.0,0.00046138,120]
[406825877,1772209857782,-159.42834038,0.00046138,120]
[406825878,1772209857792,-500.0,0.00046138,120]
[406825879,1772209857801,-500.0,0.00046138,120]
[406825880,1772209857810,-500.0,0.00046138,120]
[406825881,1772209857819,-500.0,0.00046138,120]
[406825882,1772209857829,-500.0,0.00046138,120]
[406825883,1772209857839,-500.0,0.00046138,120]
[406825884,1772209857848,-500.0,0.00046138,120]
[406825885,1772209857858,-500.0,0.00046138,120]
[406825886,1772209857869,-500.0,0.00046138,120]
[406825887,1772209857879,-500.0,0.00046138,120]
[406825888,1772209857888,-500.0,0.00046138,120]
[406825889,1772209857897,-500.0,0.00046138,120]
[406825890,1772209857907,-500.0,0.00046138,120]
[406825891,1772209857917,-500.0,0.00046138,120]
[406825892,1772209857926,-594.14,0.00046138,120]
[406825893,1772209857936,-519.75616245,0.00046138,120]
[406825894,1772209857945,-500.0,0.00046138,120]
[406825895,1772209857955,-500.0,0.00046138,120]
[406825896,1772209857964,-500.0,0.00046138,120]
[406825897,1772209857973,-500.0,0.00046138,120]
[406825898,1772209857982,-500.0,0.00046138,120]
[406825899,1772209857992,-500.0,0.00046138,120]
[406825900,1772209858001,-500.0,0.00046138,20]
[406825901,1772209858011,-500.0,0.00046138,120]
[406825902,1772209858020,-500.0,0.00046138,20]
[406825903,1772209858029,-500.0,0.00046138,120]
[406825904,1772209858040,-500.0,0.00046138,20]
[406825905,1772209858050,-500.0,0.00046138,120]
[406825906,1772209858059,-500.0,0.00046138,20]
[406825907,1772209858069,-500.0,0.00046138,120]
[406825908,1772209858079,-500.0,0.00046138,20]
[406825909,1772209858092,-510.2,0.00046138,120]
[406825910,1772209858101,-507.60156321,0.00046138,20]
[406825911,1772209858111,-500.0,0.00046138,120]
[406825912,1772209858120,-500.0,0.00046138,120]
[406825913,1772209858131,-500.0,0.00046138,120]
[406825914,1772209858141,-500.0,0.00046138,120]
[406825915,1772209858151,-500.0,0.00046138,120]
[406825916,1772209858161,-635.78,0.00046138,120]
[406825917,1772209858170,-500.0,0.00046138,120]
[406825918,1772209858179,-500.0,0.00046138,120]